[Event "December 12 Late 2023"]
[Site "https://www.chess.com"]
[Date "2023.12.12"]
[Round "10"]
[White "Asish Panda"]
[Black "Nilsson, Joakim"]
[Result "1-0"]
[Board "53"]
[TimeControl "180+1"]
[WhiteFideId "45012458"]
[BlackFideId "1723383"]
[WhiteElo "2539"]
[BlackElo "2435"]
[WhiteTeam "IND"]
[BlackTeam "SWE"]
[WhiteClock "0:00:31"]
[BlackClock "0:00:35"]

1. e4 {[%clk 0:03:00]}  c5 {[%clk 0:02:58]} 2. Nf3 {[%clk 0:03:00]}  e6 {[%clk 0:02:58]} 3. g3 {[%clk 0:03:00]}  Nc6 {[%clk 0:02:55]} 4. Bg2 {[%clk 0:03:00]}  d6 {[%clk 0:02:55]} 5. O-O {[%clk 0:03:00]}  g6 {[%clk 0:02:53]} 6. c3 {[%clk 0:03:00]}  Bg7 {[%clk 0:02:53]} 7. d4 {[%clk 0:03:01]}  Nge7 {[%clk 0:02:51]} 8. dxc5 {[%clk 0:02:57]}  dxc5 {[%clk 0:02:52]} 9. Be3 {[%clk 0:02:57]}  b6 {[%clk 0:02:51]} 10. h4 {[%clk 0:02:53]}  h6 {[%clk 0:02:49]} 11. Qc2 {[%clk 0:02:52]}  O-O {[%clk 0:02:46]} 12. Nbd2 {[%clk 0:02:50]}  Qc7 {[%clk 0:02:42]} 13. a4 {[%clk 0:02:49]}  Ba6 {[%clk 0:02:39]} 14. Rfe1 {[%clk 0:02:45]}  Rad8 {[%clk 0:02:40]} 15. Rad1 {[%clk 0:02:43]}  Na5 {[%clk 0:02:36]} 16. Qc1 {[%clk 0:02:35]}  Nc4 {[%clk 0:02:29]} 17. Nxc4 {[%clk 0:02:34]}  Bxc4 {[%clk 0:02:30]} 18. Bxh6 {[%clk 0:02:33]}  Rxd1 {[%clk 0:02:28]} 19. Rxd1 {[%clk 0:02:33]}  Bb3 {[%clk 0:02:28]} 20. Re1 {[%clk 0:02:20]}  Bxa4 {[%clk 0:02:28]} 21. h5 {[%clk 0:02:18]}  Rd8 {[%clk 0:02:26]} 22. Bxg7 {[%clk 0:02:14]}  Kxg7 {[%clk 0:02:26]} 23. hxg6 {[%clk 0:02:12]}  Nxg6 {[%clk 0:02:26]} 24. Qg5 {[%clk 0:02:09]}  Qe7 {[%clk 0:02:24]} 25. Qg4 {[%clk 0:02:08]}  Rd1 {[%clk 0:02:20]} 26. e5 {[%clk 0:02:00]}  Qd8 {[%clk 0:02:04]} 27. Qxa4 {[%clk 0:01:58]}  Rxe1+ {[%clk 0:02:01]} 28. Nxe1 {[%clk 0:01:58]}  Qd2 {[%clk 0:02:01]} 29. Nf3 {[%clk 0:01:51]}  Qc1+ {[%clk 0:02:00]} 30. Bf1 {[%clk 0:01:49]}  Qxb2 {[%clk 0:02:00]} 31. c4 {[%clk 0:01:38]}  a5 {[%clk 0:01:52]} 32. Qb5 {[%clk 0:01:37]}  Qb4 {[%clk 0:01:45]} 33. Bd3 {[%clk 0:01:29]}  Qa3 {[%clk 0:01:27]} 34. Be4 {[%clk 0:01:19]}  Nxe5 {[%clk 0:01:20]} 35. Nxe5 {[%clk 0:01:10]}  Qa1+ {[%clk 0:01:20]} 36. Bb1 {[%clk 0:01:05]}  Qxe5 {[%clk 0:01:21]} 37. Qxb6 {[%clk 0:01:06]}  a4 {[%clk 0:01:16]} 38. Kg2 {[%clk 0:01:04]}  a3 {[%clk 0:01:12]} 39. Qb3 {[%clk 0:01:04]}  Qa1 {[%clk 0:00:56]} 40. Qa2 {[%clk 0:00:59]}  Qc3 {[%clk 0:00:54]} 41. Qc2 {[%clk 0:00:58]}  Qd4 {[%clk 0:00:48]} 42. Ba2 {[%clk 0:00:49]}  f5 {[%clk 0:00:46]} 43. Qb3 {[%clk 0:00:47]}  Qb2 {[%clk 0:00:40]} 44. Qxb2+ {[%clk 0:00:46]}  axb2 {[%clk 0:00:41]} 45. f4 {[%clk 0:00:45]}  Kf6 {[%clk 0:00:40]} 46. Bb1 {[%clk 0:00:45]}  e5 {[%clk 0:00:40]} 47. fxe5+ {[%clk 0:00:43]}  Kxe5 {[%clk 0:00:40]} 48. Kf3 {[%clk 0:00:44]}  Kd4 {[%clk 0:00:37]} 49. Bxf5 {[%clk 0:00:44]}  Kxc4 {[%clk 0:00:37]} 50. g4 {[%clk 0:00:44]}  Kc3 {[%clk 0:00:35]} 51. g5 {[%clk 0:00:44]}  Kd2 {[%clk 0:00:35]} 52. g6 {[%clk 0:00:43]}  c4 {[%clk 0:00:36]} 53. g7 {[%clk 0:00:44]}  c3 {[%clk 0:00:36]} 54. g8=Q {[%clk 0:00:44]}  c2 {[%clk 0:00:37]} 55. Qd5+ {[%clk 0:00:43]}  Kc1 {[%clk 0:00:37]} 56. Bxc2 {[%clk 0:00:36]}  Kxc2 {[%clk 0:00:37]} 57. Qc4+ {[%clk 0:00:37]}  Kd1 {[%clk 0:00:35]} 58. Qd3+ {[%clk 0:00:35]}  Kc1 {[%clk 0:00:35]} 59. Qc3+ {[%clk 0:00:35]}  Kb1 {[%clk 0:00:36]} 60. Ke2 {[%clk 0:00:35]}  Ka2 {[%clk 0:00:37]} 61. Qa5+ {[%clk 0:00:34]}  Kb1 {[%clk 0:00:37]} 62. Kd3 {[%clk 0:00:31]}  Kc1 {[%clk 0:00:35]} 63. Qd2+ {[%clk 0:00:31]}  Kb1 {[%clk 0:00:34]} 64. Kc3 {[%clk 0:00:31]}  Ka2 {[%clk 0:00:35]} 65. Qxb2# {[%clk 0:00:31]} 1-0

[Event "December 12 Late 2023"]
[Site "https://www.chess.com"]
[Date "2023.12.12"]
[Round "10"]
[White "Morris-Suzuki, Alan H"]
[Black "NovakRatko"]
[Result "1-0"]
[Board "54"]
[TimeControl "180+1"]
[WhiteFideId "30933218"]
[WhiteElo "2529"]
[BlackElo "2399"]
[WhiteTeam "USA"]
[WhiteClock "0:01:06"]
[BlackClock "0:01:10"]

1. e4 {[%clk 0:03:00]}  d5 {[%clk 0:02:59]} 2. exd5 {[%clk 0:03:00]}  c6 {[%clk 0:03:00]} 3. dxc6 {[%clk 0:02:59]}  Nxc6 {[%clk 0:03:01]} 4. Bb5 {[%clk 0:02:59]}  Qd5 {[%clk 0:03:01]} 5. Bxc6+ {[%clk 0:02:57]}  Qxc6 {[%clk 0:03:02]} 6. Nf3 {[%clk 0:02:51]}  b6 {[%clk 0:03:01]} 7. O-O {[%clk 0:02:34]}  Bb7 {[%clk 0:03:01]} 8. d4 {[%clk 0:02:34]}  e6 {[%clk 0:03:01]} 9. c4 {[%clk 0:02:29]}  Rd8 {[%clk 0:03:00]} 10. d5 {[%clk 0:02:07]}  exd5 {[%clk 0:02:58]} 11. Ne5 {[%clk 0:02:06]}  Qf6 {[%clk 0:02:41]} 12. Qa4+ {[%clk 0:02:04]}  Ke7 {[%clk 0:01:58]} 13. Re1 {[%clk 0:02:02]}  Kd6 {[%clk 0:01:50]} 14. Nc3 {[%clk 0:01:57]}  a6 {[%clk 0:01:42]} 15. Nxd5 {[%clk 0:01:38]}  Bxd5 {[%clk 0:01:38]} 16. cxd5 {[%clk 0:01:37]}  Kc7 {[%clk 0:01:39]} 17. Bg5 {[%clk 0:01:22]}  Qxg5 {[%clk 0:01:23]} 18. Qc6+ {[%clk 0:01:15]}  Kb8 {[%clk 0:01:22]} 19. Qxb6+ {[%clk 0:01:12]}  Ka8 {[%clk 0:01:10]} 20. Nc6 {[%clk 0:01:06]} 1-0

[Event "December 12 Late 2023"]
[Site "https://www.chess.com"]
[Date "2023.12.12"]
[Round "10"]
[White "Melikhov, Evgeny V."]
[Black "Ismayil, Malak"]
[Result "0-1"]
[Board "56"]
[TimeControl "180+1"]
[WhiteFideId "4122046"]
[BlackFideId "13412604"]
[WhiteElo "2424"]
[BlackElo "2511"]
[WhiteTeam "GRE"]
[BlackTeam "AZE"]
[WhiteClock "0:00:12"]
[BlackClock "0:00:08"]

1. d4 {[%clk 0:03:00]}  Nf6 {[%clk 0:02:56]} 2. c4 {[%clk 0:03:00]}  e6 {[%clk 0:02:56]} 3. Nc3 {[%clk 0:03:00]}  d5 {[%clk 0:02:56]} 4. cxd5 {[%clk 0:02:59]}  exd5 {[%clk 0:02:56]} 5. Bg5 {[%clk 0:02:59]}  Bb4 {[%clk 0:02:55]} 6. e3 {[%clk 0:02:57]}  h6 {[%clk 0:02:54]} 7. Bh4 {[%clk 0:02:56]}  g5 {[%clk 0:02:54]} 8. Bg3 {[%clk 0:02:56]}  Ne4 {[%clk 0:02:55]} 9. Qc2 {[%clk 0:02:47]}  Bf5 {[%clk 0:02:50]} 10. Bd3 {[%clk 0:02:45]}  c5 {[%clk 0:02:41]} 11. f3 {[%clk 0:02:31]}  Nxg3 {[%clk 0:02:29]} 12. hxg3 {[%clk 0:02:30]}  Qe7 {[%clk 0:01:50]} 13. Kf2 {[%clk 0:02:27]}  Be6 {[%clk 0:01:36]} 14. Nge2 {[%clk 0:02:23]}  Nc6 {[%clk 0:01:35]} 15. dxc5 {[%clk 0:02:08]}  Bxc5 {[%clk 0:01:32]} 16. Nb5 {[%clk 0:02:05]}  Nb4 {[%clk 0:01:22]} 17. Qd2 {[%clk 0:02:00]}  Nc6 {[%clk 0:00:54]} 18. Rac1 {[%clk 0:01:54]}  Bb6 {[%clk 0:00:52]} 19. Nbd4 {[%clk 0:01:48]}  Ne5 {[%clk 0:00:46]} 20. Bb5+ {[%clk 0:01:42]}  Kf8 {[%clk 0:00:45]} 21. Nxe6+ {[%clk 0:01:31]}  Qxe6 {[%clk 0:00:40]} 22. Nd4 {[%clk 0:01:30]}  Qf6 {[%clk 0:00:38]} 23. Kg1 {[%clk 0:01:00]}  h5 {[%clk 0:00:31]} 24. Be2 {[%clk 0:00:54]}  h4 {[%clk 0:00:30]} 25. g4 {[%clk 0:00:53]}  Re8 {[%clk 0:00:21]} 26. Rh3 {[%clk 0:00:48]}  Nc6 {[%clk 0:00:17]} 27. Bb5 {[%clk 0:00:44]}  Rxe3 {[%clk 0:00:12]} 28. Rxc6 {[%clk 0:00:35]}  bxc6 {[%clk 0:00:10]} 29. Bxc6 {[%clk 0:00:21]}  Qxd4 {[%clk 0:00:07]} 30. Qxd4 {[%clk 0:00:20]}  Bxd4 {[%clk 0:00:08]} 31. Kh2 {[%clk 0:00:19]}  Re1 {[%clk 0:00:07]} 32. g3 {[%clk 0:00:16]}  hxg3+ {[%clk 0:00:05]} 33. Kxg3 {[%clk 0:00:16]}  Be5+ {[%clk 0:00:06]} 34. Kg2 {[%clk 0:00:16]}  Re2+ {[%clk 0:00:05]} 35. Kf1 {[%clk 0:00:17]}  Rxh3 {[%clk 0:00:05]} 36. Kxe2 {[%clk 0:00:18]}  Rh2+ {[%clk 0:00:06]} 37. Kd3 {[%clk 0:00:18]}  Rxb2 {[%clk 0:00:06]} 38. Bxd5 {[%clk 0:00:19]}  Ke7 {[%clk 0:00:06]} 39. Ke4 {[%clk 0:00:20]}  f6 {[%clk 0:00:06]} 40. Kf5 {[%clk 0:00:19]}  Kd6 {[%clk 0:00:06]} 41. Bg8 {[%clk 0:00:19]}  a5 {[%clk 0:00:05]} 42. Bf7 {[%clk 0:00:18]}  Rf2 {[%clk 0:00:05]} 43. Ke4 {[%clk 0:00:18]}  Kc5 {[%clk 0:00:05]} 44. Bg8 {[%clk 0:00:17]}  Kb4 {[%clk 0:00:05]} 45. Bf7 {[%clk 0:00:17]}  a4 {[%clk 0:00:05]} 46. Be6 {[%clk 0:00:16]}  Re2+ {[%clk 0:00:04]} 47. Kd3 {[%clk 0:00:16]}  Rf2 {[%clk 0:00:04]} 48. Ke4 {[%clk 0:00:17]}  Bc3 {[%clk 0:00:04]} 49. Bd5 {[%clk 0:00:15]}  Re2+ {[%clk 0:00:04]} 50. Kd3 {[%clk 0:00:15]}  Re5 {[%clk 0:00:03]} 51. Bg8 {[%clk 0:00:15]}  Re8 {[%clk 0:00:03]} 52. Bf7 {[%clk 0:00:15]}  Rd8+ {[%clk 0:00:04]} 53. Ke4 {[%clk 0:00:14]}  Ka3 {[%clk 0:00:04]} 54. Kf5 {[%clk 0:00:13]}  Kb2 {[%clk 0:00:04]} 55. Ke4 {[%clk 0:00:13]}  a3 {[%clk 0:00:05]} 56. Kf5 {[%clk 0:00:13]}  Rd1 {[%clk 0:00:05]} 57. Ke4 {[%clk 0:00:13]}  Ra1 {[%clk 0:00:05]} 58. Kd3 {[%clk 0:00:13]}  Rxa2 {[%clk 0:00:04]} 59. Bxa2 {[%clk 0:00:12]}  Kxa2 {[%clk 0:00:05]} 60. Kxc3 {[%clk 0:00:12]}  Kb1 {[%clk 0:00:05]} 61. Kd4 {[%clk 0:00:13]}  a2 {[%clk 0:00:06]} 62. Ke4 {[%clk 0:00:14]}  a1=Q {[%clk 0:00:07]} 63. Kf5 {[%clk 0:00:15]}  Qe5+ {[%clk 0:00:07]} 64. Kg6 {[%clk 0:00:15]}  Qf4 {[%clk 0:00:08]} 65. Kh5 {[%clk 0:00:12]}  Qxf3 {[%clk 0:00:08]} 0-1

[Event "December 12 Late 2023"]
[Site "https://www.chess.com"]
[Date "2023.12.12"]
[Round "10"]
[White "Bardyk, Artem"]
[Black "Avila Rodriguez, Joshua Ad"]
[Result "1-0"]
[Board "59"]
[TimeControl "180+1"]
[WhiteFideId "34349979"]
[BlackFideId "5126444"]
[WhiteElo "2690"]
[BlackElo "2426"]
[WhiteTeam "RUS"]
[BlackTeam "MEX"]
[WhiteClock "0:00:39"]
[BlackClock "0:00:05"]

1. e4 {[%clk 0:03:00]}  c5 {[%clk 0:02:59]} 2. c3 {[%clk 0:03:01]}  Nf6 {[%clk 0:02:59]} 3. e5 {[%clk 0:03:01]}  Nd5 {[%clk 0:02:59]} 4. Nf3 {[%clk 0:03:01]}  d6 {[%clk 0:02:59]} 5. Bc4 {[%clk 0:03:02]}  Nb6 {[%clk 0:02:56]} 6. e6 {[%clk 0:03:00]}  fxe6 {[%clk 0:02:24]} 7. Bb3 {[%clk 0:02:59]}  g6 {[%clk 0:02:12]} 8. h4 {[%clk 0:02:59]}  Bg7 {[%clk 0:01:57]} 9. h5 {[%clk 0:02:57]}  Nc6 {[%clk 0:01:57]} 10. hxg6 {[%clk 0:02:50]}  hxg6 {[%clk 0:01:57]} 11. Rxh8+ {[%clk 0:02:51]}  Bxh8 {[%clk 0:01:58]} 12. Bc2 {[%clk 0:02:50]}  Kd7 {[%clk 0:01:56]} 13. d4 {[%clk 0:02:43]}  cxd4 {[%clk 0:01:43]} 14. cxd4 {[%clk 0:02:43]}  Nd5 {[%clk 0:01:39]} 15. Nc3 {[%clk 0:02:41]}  Qg8 {[%clk 0:01:30]} 16. Nxd5 {[%clk 0:02:21]}  exd5 {[%clk 0:01:30]} 17. b4 {[%clk 0:02:22]}  a6 {[%clk 0:01:18]} 18. Rb1 {[%clk 0:02:19]}  b5 {[%clk 0:01:14]} 19. a4 {[%clk 0:02:17]}  Bf6 {[%clk 0:01:04]} 20. Qd3 {[%clk 0:02:12]}  Rb8 {[%clk 0:01:01]} 21. axb5 {[%clk 0:02:12]}  axb5 {[%clk 0:01:02]} 22. Ra1 {[%clk 0:02:08]}  Nxb4 {[%clk 0:01:01]} 23. Ra7+ {[%clk 0:02:07]}  Kd8 {[%clk 0:00:55]} 24. Qc3 {[%clk 0:02:01]}  Nxc2+ {[%clk 0:00:54]} 25. Qxc2 {[%clk 0:02:02]}  Rb7 {[%clk 0:00:44]} 26. Ra8 {[%clk 0:02:01]}  Rc7 {[%clk 0:00:43]} 27. Qb2 {[%clk 0:02:00]}  Qe6+ {[%clk 0:00:39]} 28. Kf1 {[%clk 0:01:52]}  Qd7 {[%clk 0:00:38]} 29. Bd2 {[%clk 0:01:45]}  Ke8 {[%clk 0:00:37]} 30. Qb1 {[%clk 0:01:33]}  Kf7 {[%clk 0:00:36]} 31. Ra3 {[%clk 0:01:33]}  Qf5 {[%clk 0:00:32]} 32. Qxb5 {[%clk 0:01:15]}  Rb7 {[%clk 0:00:30]} 33. Qe2 {[%clk 0:01:10]}  Rb1+ {[%clk 0:00:30]} 34. Be1 {[%clk 0:01:11]}  Bd7 {[%clk 0:00:30]} 35. Kg1 {[%clk 0:01:08]}  Bb5 {[%clk 0:00:30]} 36. Qe3 {[%clk 0:01:08]}  Qe4 {[%clk 0:00:26]} 37. Qd2 {[%clk 0:00:59]}  Be2 {[%clk 0:00:21]} 38. Re3 {[%clk 0:00:56]}  Bxf3 {[%clk 0:00:21]} 39. Rxe4 {[%clk 0:00:55]}  Bxe4 {[%clk 0:00:22]} 40. Kh2 {[%clk 0:00:51]}  Bf5 {[%clk 0:00:19]} 41. f3 {[%clk 0:00:50]}  Rb3 {[%clk 0:00:19]} 42. Bf2 {[%clk 0:00:48]}  g5 {[%clk 0:00:11]} 43. Qa2 {[%clk 0:00:45]}  Rb5 {[%clk 0:00:10]} 44. Qa6 {[%clk 0:00:44]}  Bd7 {[%clk 0:00:10]} 45. Qa1 {[%clk 0:00:41]}  Be8 {[%clk 0:00:10]} 46. Qd1 {[%clk 0:00:41]}  Kg7 {[%clk 0:00:10]} 47. Be3 {[%clk 0:00:39]}  Rb4 {[%clk 0:00:09]} 48. Qd2 {[%clk 0:00:39]}  Kg6 {[%clk 0:00:05]} 49. Qxb4 {[%clk 0:00:39]} 1-0

[Event "December 12 Late 2023"]
[Site "https://www.chess.com"]
[Date "2023.12.12"]
[Round "10"]
[White "Haszon, David"]
[Black "Krzywda, Andrzej"]
[Result "0-1"]
[Board "64"]
[TimeControl "180+1"]
[WhiteFideId "733610"]
[BlackFideId "1114565"]
[WhiteElo "2389"]
[BlackElo "2497"]
[WhiteTeam "HUN"]
[BlackTeam "POL"]
[WhiteClock "0:01:34"]
[BlackClock "0:00:59"]

1. d4 {[%clk 0:03:00]}  d5 {[%clk 0:02:59]} 2. Bf4 {[%clk 0:03:01]}  Nf6 {[%clk 0:02:59]} 3. e3 {[%clk 0:03:02]}  c5 {[%clk 0:02:59]} 4. Nd2 {[%clk 0:03:01]}  cxd4 {[%clk 0:02:38]} 5. exd4 {[%clk 0:03:02]}  Nc6 {[%clk 0:02:38]} 6. Ngf3 {[%clk 0:03:02]}  Bf5 {[%clk 0:02:38]} 7. c3 {[%clk 0:03:01]}  a6 {[%clk 0:02:36]} 8. a4 {[%clk 0:03:00]}  e6 {[%clk 0:02:34]} 9. Nh4 {[%clk 0:02:47]}  Bg6 {[%clk 0:02:30]} 10. Nxg6 {[%clk 0:02:46]}  hxg6 {[%clk 0:02:29]} 11. Bd3 {[%clk 0:02:47]}  Bd6 {[%clk 0:02:29]} 12. Qf3 {[%clk 0:02:40]}  Qc7 {[%clk 0:02:29]} 13. Bxd6 {[%clk 0:02:36]}  Qxd6 {[%clk 0:02:29]} 14. h3 {[%clk 0:02:37]}  O-O {[%clk 0:02:18]} 15. O-O {[%clk 0:02:37]}  e5 {[%clk 0:02:18]} 16. dxe5 {[%clk 0:02:37]}  Nxe5 {[%clk 0:02:18]} 17. Qg3 {[%clk 0:02:38]}  Rad8 {[%clk 0:02:14]} 18. Rad1 {[%clk 0:02:34]}  Nxd3 {[%clk 0:02:04]} 19. Qxd3 {[%clk 0:02:35]}  Qc6 {[%clk 0:02:00]} 20. Qd4 {[%clk 0:02:28]}  Ne4 {[%clk 0:01:46]} 21. Nxe4 {[%clk 0:02:25]}  dxe4 {[%clk 0:01:46]} 22. Qxd8 {[%clk 0:02:26]}  Rxd8 {[%clk 0:01:46]} 23. Rxd8+ {[%clk 0:02:27]}  Kh7 {[%clk 0:01:46]} 24. Rd4 {[%clk 0:02:28]}  f5 {[%clk 0:01:43]} 25. Re1 {[%clk 0:02:15]}  Qb6 {[%clk 0:01:42]} 26. b4 {[%clk 0:02:11]}  Qc6 {[%clk 0:01:42]} 27. Re3 {[%clk 0:01:43]}  Qxa4 {[%clk 0:01:40]} 28. f3 {[%clk 0:01:43]}  Qa1+ {[%clk 0:01:37]} 29. Kh2 {[%clk 0:01:42]}  Qc1 {[%clk 0:01:37]} 30. Re2 {[%clk 0:01:38]}  Qxc3 {[%clk 0:01:35]} 31. Rd7 {[%clk 0:01:38]}  exf3 {[%clk 0:01:31]} 32. gxf3 {[%clk 0:01:39]}  Qxf3 {[%clk 0:01:30]} 33. Ree7 {[%clk 0:01:40]}  Qf2+ {[%clk 0:01:23]} 34. Kh1 {[%clk 0:01:40]}  Kh6 {[%clk 0:01:06]} 35. Rxg7 {[%clk 0:01:40]}  Qf1+ {[%clk 0:00:58]} 36. Kh2 {[%clk 0:01:39]}  Qe2+ {[%clk 0:00:59]} 37. Kg3 {[%clk 0:01:34]}  Qe5+ {[%clk 0:00:59]} 0-1

[Event "December 12 Late 2023"]
[Site "https://www.chess.com"]
[Date "2023.12.12"]
[Round "10"]
[White "Bogaudinov, Rushan"]
[Black "Gerbelli Neto, Eduardo"]
[Result "0-1"]
[Board "66"]
[TimeControl "180+1"]
[WhiteFideId "4129288"]
[BlackFideId "2103281"]
[WhiteElo "2467"]
[BlackElo "2354"]
[WhiteTeam "RUS"]
[BlackTeam "BRA"]
[WhiteClock "0:00:10"]
[BlackClock "0:00:23"]

1. d4 {[%clk 0:01:25]}  d5 {[%clk 0:02:58]} 2. e3 {[%clk 0:01:26]}  Nf6 {[%clk 0:02:58]} 3. Nf3 {[%clk 0:01:27]}  Bf5 {[%clk 0:02:57]} 4. Be2 {[%clk 0:01:28]}  e6 {[%clk 0:02:58]} 5. O-O {[%clk 0:01:29]}  Be7 {[%clk 0:02:57]} 6. b3 {[%clk 0:01:30]}  c5 {[%clk 0:02:56]} 7. Bb2 {[%clk 0:01:31]}  O-O {[%clk 0:02:55]} 8. c4 {[%clk 0:01:31]}  Nc6 {[%clk 0:02:51]} 9. Nc3 {[%clk 0:01:30]}  cxd4 {[%clk 0:02:49]} 10. Nxd4 {[%clk 0:01:30]}  Bg6 {[%clk 0:02:45]} 11. cxd5 {[%clk 0:01:29]}  exd5 {[%clk 0:02:45]} 12. Nxc6 {[%clk 0:01:28]}  bxc6 {[%clk 0:02:45]} 13. Rc1 {[%clk 0:01:28]}  Qd7 {[%clk 0:02:21]} 14. Na4 {[%clk 0:01:27]}  Ne4 {[%clk 0:02:04]} 15. f3 {[%clk 0:01:20]}  Nf6 {[%clk 0:01:55]} 16. Bd3 {[%clk 0:01:13]}  Rfe8 {[%clk 0:01:52]} 17. Bxg6 {[%clk 0:01:11]}  hxg6 {[%clk 0:01:52]} 18. Qd3 {[%clk 0:01:10]}  Qe6 {[%clk 0:01:49]} 19. Bd4 {[%clk 0:01:07]}  Nd7 {[%clk 0:01:41]} 20. Rc2 {[%clk 0:01:06]}  Ba3 {[%clk 0:01:02]} 21. Qa6 {[%clk 0:01:01]}  c5 {[%clk 0:00:35]} 22. Qxe6 {[%clk 0:00:56]}  Rxe6 {[%clk 0:00:33]} 23. Nxc5 {[%clk 0:00:54]}  Nxc5 {[%clk 0:00:32]} 24. Bxc5 {[%clk 0:00:55]}  Rc8 {[%clk 0:00:32]} 25. Bxa3 {[%clk 0:00:30]}  Rxc2 {[%clk 0:00:31]} 26. Rf2 {[%clk 0:00:30]}  Rec6 {[%clk 0:00:28]} 27. Rf1 {[%clk 0:00:18]}  Rxa2 {[%clk 0:00:28]} 28. Bb4 {[%clk 0:00:17]}  Rcc2 {[%clk 0:00:27]} 29. Bd6 {[%clk 0:00:16]}  Rxg2+ {[%clk 0:00:27]} 30. Kh1 {[%clk 0:00:17]}  Rgf2 {[%clk 0:00:27]} 31. Rd1 {[%clk 0:00:15]}  Rfd2 {[%clk 0:00:25]} 32. Rc1 {[%clk 0:00:14]}  Rac2 {[%clk 0:00:25]} 33. Ra1 {[%clk 0:00:13]}  Ra2 {[%clk 0:00:23]} 34. Rc1 {[%clk 0:00:13]}  Rdb2 {[%clk 0:00:21]} 35. Bg3 {[%clk 0:00:11]}  Rxb3 {[%clk 0:00:20]} 36. Bf4 {[%clk 0:00:10]}  f6 {[%clk 0:00:20]} 37. h4 {[%clk 0:00:10]}  Rbb2 {[%clk 0:00:19]} 38. Rd1 {[%clk 0:00:09]}  Kf7 {[%clk 0:00:18]} 39. Rc1 {[%clk 0:00:09]}  Ke6 {[%clk 0:00:18]} 40. Kg1 {[%clk 0:00:08]}  g5 {[%clk 0:00:17]} 41. hxg5 {[%clk 0:00:08]}  fxg5 {[%clk 0:00:18]} 42. Bc7 {[%clk 0:00:04]}  Rc2 {[%clk 0:00:18]} 43. Rxc2 {[%clk 0:00:05]}  Rxc2 {[%clk 0:00:19]} 44. Ba5 {[%clk 0:00:05]}  Ra2 {[%clk 0:00:18]} 45. Bb4 {[%clk 0:00:05]}  a5 {[%clk 0:00:18]} 46. Bc5 {[%clk 0:00:05]}  a4 {[%clk 0:00:18]} 47. Bd4 {[%clk 0:00:06]}  g6 {[%clk 0:00:18]} 48. Kf1 {[%clk 0:00:05]}  Rc2 {[%clk 0:00:19]} 49. Ke1 {[%clk 0:00:05]}  a3 {[%clk 0:00:19]} 50. Kd1 {[%clk 0:00:06]}  Rg2 {[%clk 0:00:19]} 51. Kc1 {[%clk 0:00:06]}  a2 {[%clk 0:00:20]} 52. Bc3 {[%clk 0:00:06]}  Rg1+ {[%clk 0:00:19]} 53. Kc2 {[%clk 0:00:05]}  a1=Q {[%clk 0:00:20]} 54. Bxa1 {[%clk 0:00:06]}  Rxa1 {[%clk 0:00:20]} 55. Kd3 {[%clk 0:00:07]}  Rf1 {[%clk 0:00:20]} 56. Ke2 {[%clk 0:00:07]}  Ra1 {[%clk 0:00:20]} 57. Kd3 {[%clk 0:00:07]}  Ke5 {[%clk 0:00:20]} 58. Ke2 {[%clk 0:00:07]}  Ra3 {[%clk 0:00:20]} 59. Kf2 {[%clk 0:00:07]}  Kf5 {[%clk 0:00:20]} 60. Ke2 {[%clk 0:00:07]}  Ra2+ {[%clk 0:00:20]} 61. Kd3 {[%clk 0:00:07]}  g4 {[%clk 0:00:21]} 62. fxg4+ {[%clk 0:00:07]}  Kxg4 {[%clk 0:00:22]} 63. Kd4 {[%clk 0:00:08]}  Rd2+ {[%clk 0:00:21]} 64. Ke5 {[%clk 0:00:07]}  Kf3 {[%clk 0:00:20]} 65. Kf6 {[%clk 0:00:08]}  Kxe3 {[%clk 0:00:20]} 66. Kg5 {[%clk 0:00:08]}  Rf2 {[%clk 0:00:20]} 67. Kg4 {[%clk 0:00:09]}  d4 {[%clk 0:00:21]} 68. Kg3 {[%clk 0:00:09]}  d3 {[%clk 0:00:22]} 69. Kh3 {[%clk 0:00:10]}  d2 {[%clk 0:00:23]} 70. Kg3 {[%clk 0:00:10]}  d1=Q {[%clk 0:00:24]} 71. Kh4 {[%clk 0:00:11]}  Qg1 {[%clk 0:00:23]} 72. Kh3 {[%clk 0:00:10]}  Rh2# {[%clk 0:00:23]} 0-1

[Event "December 12 Late 2023"]
[Site "https://www.chess.com"]
[Date "2023.12.12"]
[Round "10"]
[White "Bonin, Jay"]
[Black "Ladan, Nicholas"]
[Result "0-1"]
[Board "67"]
[TimeControl "180+1"]
[WhiteFideId "2000644"]
[BlackFideId "30918855"]
[WhiteElo "2321"]
[BlackElo "2464"]
[WhiteTeam "USA"]
[BlackTeam "USA"]
[WhiteClock "0:00:03"]
[BlackClock "0:00:21"]

1. d4 {[%clk 0:02:58]}  d5 {[%clk 0:02:59]} 2. Nf3 {[%clk 0:02:56]}  Nf6 {[%clk 0:03:00]} 3. c4 {[%clk 0:02:55]}  e6 {[%clk 0:02:58]} 4. Nc3 {[%clk 0:02:54]}  Bb4 {[%clk 0:02:58]} 5. Qa4+ {[%clk 0:02:52]}  Nc6 {[%clk 0:02:57]} 6. Bg5 {[%clk 0:02:51]}  h6 {[%clk 0:02:55]} 7. Bxf6 {[%clk 0:02:50]}  Qxf6 {[%clk 0:02:56]} 8. e3 {[%clk 0:02:49]}  O-O {[%clk 0:02:53]} 9. Rc1 {[%clk 0:02:47]}  Rd8 {[%clk 0:02:53]} 10. cxd5 {[%clk 0:02:42]}  exd5 {[%clk 0:02:52]} 11. Be2 {[%clk 0:02:42]}  Bf8 {[%clk 0:02:40]} 12. Qb3 {[%clk 0:02:24]}  Ne7 {[%clk 0:02:38]} 13. Ne5 {[%clk 0:02:19]}  c6 {[%clk 0:02:36]} 14. O-O {[%clk 0:02:16]}  Nf5 {[%clk 0:02:32]} 15. Na4 {[%clk 0:02:05]}  Bd6 {[%clk 0:02:15]} 16. f4 {[%clk 0:02:00]}  Bc7 {[%clk 0:02:05]} 17. Nc5 {[%clk 0:01:56]}  Nd6 {[%clk 0:02:04]} 18. g4 {[%clk 0:01:38]}  Qh4 {[%clk 0:02:02]} 19. Rf2 {[%clk 0:01:33]}  Bb6 {[%clk 0:01:47]} 20. Rg2 {[%clk 0:01:30]}  Bxc5 {[%clk 0:01:45]} 21. dxc5 {[%clk 0:01:26]}  Ne4 {[%clk 0:01:41]} 22. Bf3 {[%clk 0:01:24]}  Qe7 {[%clk 0:01:28]} 23. Rd1 {[%clk 0:01:18]}  Nxc5 {[%clk 0:01:16]} 24. Qa3 {[%clk 0:01:10]}  Re8 {[%clk 0:01:12]} 25. g5 {[%clk 0:00:59]}  hxg5 {[%clk 0:01:08]} 26. Rxg5 {[%clk 0:00:56]}  Ne6 {[%clk 0:01:07]} 27. Qxe7 {[%clk 0:00:53]}  Rxe7 {[%clk 0:01:08]} 28. Rg2 {[%clk 0:00:51]}  Nf8 {[%clk 0:01:02]} 29. Rd3 {[%clk 0:00:46]}  Bf5 {[%clk 0:00:56]} 30. Ra3 {[%clk 0:00:44]}  f6 {[%clk 0:00:54]} 31. Ng4 {[%clk 0:00:40]}  Bxg4 {[%clk 0:00:46]} 32. Rxg4 {[%clk 0:00:38]}  Nd7 {[%clk 0:00:44]} 33. Kf2 {[%clk 0:00:32]}  a6 {[%clk 0:00:37]} 34. b4 {[%clk 0:00:31]}  Nb6 {[%clk 0:00:36]} 35. Be2 {[%clk 0:00:27]}  Rae8 {[%clk 0:00:34]} 36. Rg3 {[%clk 0:00:25]}  d4 {[%clk 0:00:31]} 37. Bh5 {[%clk 0:00:21]}  dxe3+ {[%clk 0:00:29]} 38. Ke2 {[%clk 0:00:19]}  Rd8 {[%clk 0:00:25]} 39. Rgxe3 {[%clk 0:00:15]}  Kf8 {[%clk 0:00:24]} 40. Rxe7 {[%clk 0:00:11]}  Kxe7 {[%clk 0:00:25]} 41. Rg3 {[%clk 0:00:09]}  Kf8 {[%clk 0:00:23]} 42. Rh3 {[%clk 0:00:06]}  Nd5 {[%clk 0:00:22]} 43. Bg6 {[%clk 0:00:03]}  Nxf4+ {[%clk 0:00:21]} 0-1